Cogmind - Beta 11 @@@ ROGUE MODE // 2022.04.04 @ 21:00:21 Player: Strikerv2 Result: Destroyed by G-34 Mercenary with Small Laser Performance ------------- Evolutions (0) 0 Regions Visited (1) 200 Robots Destroyed (6) 30 Value Destroyed (199) 199 Prototype IDs (0) 0 Alien Tech Used (0) 0 Bonus (0) 0 TOTAL SCORE: 429 Bonus ------- None Cogmind --------- Core Integrity 0/250 Matter 300/300 Energy 68/100 System Corruption 0% Temperature Cool (6) Movement Walking (120) Location -10/Materials Parts ------- > --- POWER (1) -------- (None) > --- PROPULSION (2) --- Aluminum Leg > --- UTILITY (2) ------ (None) > --- WEAPON (2) ------- (None) > --- INVENTORY (5) ---- Large Storage Unit Peak State ------------ > --- POWER ------------ Light Ion Engine > --- PROPULSION ------- Aluminum Leg Aluminum Leg > --- UTILITY ---------- Improved Terrain Scanner Seismic Detector > --- WEAPON ----------- Medium Laser Medium Laser > --- INVENTORY -------- Aluminum Leg EM Pulse Gun Mining Laser [Rating: 9] Favorites ----------- Power Light Ion Engine Engine Light Ion Engine Propulsion Aluminum Leg Leg Aluminum Leg Utility Improved Terrain Scanner Device Improved Terrain Scanner Weapon Medium Laser Energy Gun Medium Laser Ballistic Gun Light Assault Rifle Special Weapon Mining Laser Build | -11 -10 ------- Run | Scr Mat Slots Evolved . | . . Power . | . . Propulsion . | . . Utility . | . . Weapon . | . . Parts Attached 13 | 8 5 Power 1 | 1 . Engine 1 | 1 . Core . | . . Reactor . | . . Propulsion 3 | 2 1 Treads . | . . Leg 3 | 2 1 Wheel . | . . Hover . | . . Flight . | . . Utility 2 | 2 . Device 2 | 2 . Storage . | . . Processor . | . . Hackware . | . . Protection . | . . Artifact . | . . Weapon 7 | 3 4 Energy Gun 4 | 3 1 Energy Cannon . | . . Ballistic Gun 1 | . 1 Ballistic Cannon . | . . Launcher . | . . Special Weapon 2 | . 2 Impact Weapon . | . . Slashing Weapon . | . . Piercing Weapon . | . . Special Melee Weapon . | . . Unidentified Prototypes . | . . Parts Lost 10 | . 10 Power 1 | . 1 Propulsion 2 | . 2 Utility 2 | . 2 Weapon 5 | . 5 Highest Loss Streak 5 | . 5 To Critical Strikes . | . . Average Slot Usage (%) 80 | . 80 Engine 10 | . 10 Leg 24 | . 24 Device 23 | . 23 Energy Gun 15 | . 15 Ballistic Gun 2 | . 2 Special Weapon 2 | . 2 Naked Turns 13 | . 13 Heaviest Build 9 | 9 9 Greatest Support 20 | 20 20 Greatest Overweight (x) . | . . Average Overweight (x) . | . . Largest Inventory Capacity 5 | 5 5 Average Capacity 5 | 5 5 Most Carried 5 | 5 5 Average Carried 3 | 1 4 Final Capacity 5 | 5 5 Final Carried 3 | 3 1 Class Distribution -------------------- 100% | Mutant Dominant Class ---------------- Mutant | -10/Materials Resources | -11 -10 ----------- Run | Scr Mat Matter Collected 282 | 280 2 Remotely . | . . Salvage Created 253 | 46 207 Parts 12 | 1 11 Haulers Intercepted . | . . Recyclers Shooed . | . . Parts Field Recycled . | . . Retrieved Matter . | . . Parts Self-Destructed . | . . Prevented . | . . Kills | -11 -10 ------- Run | Scr Mat Combat Hostiles Destroyed 5 | 1 4 Guns 4 | 1 3 AOE 1 | . 1 Classes Destroyed 2 | 1 1 Watcher 1 | . 1 Grunt 5 | 1 4 Best Kill Streak 1 | 1 1 Combat Bots Only 1 | 1 1 Max Kills in Single Turn 1 | 1 1 Gunslinging . | . . Exploded 1 | . 1 Melee . | . . Uniques/NPCs Destroyed . | . . Combat | -11 -10 -------- Run | Scr Mat Damage Taken 853 | 45 808 Core 252 | 11 241 Absorbed by Shields . | . . Core Remaining (%) 95 | 95 . Volleys Fired 42 | 5 37 Largest 2 | 2 2 Hottest 100 | 100 100 Shots Fired 64 | 10 54 Gun 48 | 10 38 Cannon . | . . Launcher . | . . Special 16 | . 16 Kinetic 14 | . 14 Thermal 44 | 10 34 Explosive . | . . Electromagnetic 6 | . 6 Robot Hit Streak 9 | 2 9 Robot Miss Streak 3 | 1 3 Penetration Max . | . . Secondary Targets 1 | . 1 Max Gunslinging Chain 1 | . 1 Shots Hit Robots 30 | 6 24 Core Hits 15 | 2 13 Critical Kills . | . . Critical Parts Destroyed . | . . Critical Strikes 2 | . 2 Burn 2 | . 2 Melee Attacks . | . . Impact . | . . Slashing . | . . Piercing . | . . Sneak Attacks . | . . Combat Hostiles . | . . Follow-up Attacks . | . . Damage Inflicted 348 | 75 273 Guns 328 | 75 253 Cannons . | . . Explosions . | . . Melee . | . . Ramming 20 | . 20 Kinetic 86 | . 86 Thermal 215 | 75 140 Explosive . | . . Electromagnetic 27 | . 27 Impact . | . . Slashing . | . . Piercing . | . . Highest Corruption . | . . Average Corruption . | . . Corruption Purged . | . . Corruption Blocked . | . . Overload Shots . | . . Overflow Damage . | . . Projectiles . | . . Explosions . | . . Melee . | . . Knockbacks . | . . Impact . | . . Kinetic . | . . Secondary . | . . Self-Inflicted Damage . | . . Shots . | . . Rammed . | . . Targets Rammed 20 | . 20 Kicked 20 | . 20 Crushed . | . . Highest Temperature 219 | 219 146 Average Temperature 47 | 113 33 Received Heat Transfer 429 | 24 405 Siege Activations . | . . Robots Corrupted . | . . Combat Hostiles . | . . Parts Fried . | . . Impact Corruptions . | . . Robots Melted . | . . Combat Hostiles . | . . Parts Melted 2 | . 2 Heat Transferred 777 | 222 555 Parts Sabotaged . | . . Parts Stolen . | . . Parts Stripped . | . . Power Chain Reactions . | . . Missiles Intercepted . | . . Alert | -11 -10 ------- Run | Scr Mat Peak Influence 73 | 20 73 Initial 13 | . 13 Average 34 | 6 40 Maximum Alert Level . | . . Low Security (%) 100 | 100 100 Level 1 . | . . Level 2 . | . . Level 3 . | . . Level 4 . | . . Level 5 . | . . High Security . | . . Max Security . | . . Squads Dispatched 1 | . 1 Investigation 1 | . 1 Extermination . | . . Reinforcement . | . . Assault . | . . Garrison . | . . Intercept . | . . Searches Triggered . | . . Construction Impeded . | . . Haulers Reinforced . | . . Active Scanning Responses . | . . Cargo Convoy Interrupts . | . . Stealth | -11 -10 --------- Run | Scr Mat Distress Signals 1 | . 1 Communications Jammed . | . . Distress Signals . | . . Times Spotted 12 | 1 11 Peak Tracking Total 5 | 1 5 Tactical Retreats 2 | . 2 Traps | -11 -10 ------- Run | Scr Mat Traps Triggered . | . . Indirectly . | . . Trap Hack Attempts . | . . Triggered . | . . Disarmed . | . . Reprogrammed . | . . Reused . | . . Traps Extracted . | . . Installed . | . . Triggered . | . . Machines | -11 -10 ---------- Run | Scr Mat Machines Disabled . | . . Max in Single Turn . | . . Machines Sabotaged . | . . Garrisons Compromised . | . . Overloaded Fab Kills . | . . Hacking | -11 -10 --------- Run | Scr Mat Machines Accessed 1 | . 1 Terminals 1 | . 1 Fabricators . | . . Repair Stations . | . . Recycling Units . | . . Scanalyzers . | . . Garrison Access . | . . Total Hacks 3 | . 3 Successful 2 | . 2 Failed 1 | . 1 Catastrophic . | . . Database Lockouts . | . . Manual . | . . Terminals 3 | . 3 Fabricators . | . . Repair Stations . | . . Recycling Units . | . . Scanalyzers . | . . Garrison Access . | . . Terminal Hacks 2 | . 2 Record 2 | . 2 Fabricator Hacks . | . . Repair Station Hacks . | . . Recycling Unit Hacks . | . . Scanalyzer . | . . Garrison Access Hacks . | . . Unauthorized Hacks . | . . Terminals . | . . Fabricators . | . . Repair Stations . | . . Recycling Units . | . . Scanalyzers . | . . Garrison Access . | . . Data Cores Recovered . | . . Used . | . . Hacking Detections 1 | . 1 Full Trace Events 1 | . 1 Feedback Events . | . . Feedback Blocked . | . . Robot Schematics Acquired . | . . Robots Built . | . . Authchips . | . . Time . | . . Total Robot Build Rating . | . . Part Schematics Acquired . | . . Parts Built . | . . Authchips . | . . Time . | . . Total Part Build Rating . | . . Parts Repaired . | . . Time . | . . Parts Recycled . | . . Recycled Matter . | . . Retrieved Matter . | . . Retrieved Components . | . . Parts Scanalyzed . | . . Part Schematics Acquired . | . . Parts Damaged . | . . Bothacking | -11 -10 ------------ Run | Scr Mat Used RIF Installer . | . . Robots Hacked . | . . Non-combat . | . . Combat . | . . Robot Hacks Applied . | . . Relay Couplers Released . | . . Fabnet Peak Effective % . | . . Robots Rewired . | . . Allies Hacked . | . . Hacks Repelled . | . . Allies | -11 -10 -------- Run | Scr Mat Total Allies . | . . Largest Group . | . . Highest-Rated Group . | . . Highest-Rated Ally . | . . Total Orders . | . . Ally Attacks . | . . Total Damage . | . . Kills . | . . Allies Corrupted . | . . Allies Melted . | . . Intel | -11 -10 ------- Run | Scr Mat Robot Analysis Total . | . . Derelict Logs Recovered . | . . Drone Launches . | . . Drone Recoveries . | . . Exploration | -11 -10 ------------- Run | Scr Mat Turns Passed 661 | 123 538 Spaces Moved 382 | 89 293 Core 58 | 24 34 Treads . | . . Legs 324 | 65 259 Wheels . | . . Hover . | . . Flight . | . . Fastest Speed 50 | 50 50 Average Speed 109 | 101 111 Slowest Speed 120 | 120 120 Overloaded Moves . | . . Propulsion Burnouts . | . . Robots Hopped . | . . Cave-ins Triggered . | . . Exploration Rate (%) 20 | 10 31 Regions Visited 1 Branch Regions . Pre-discovered Areas . | . . Known Exits Taken . | . . Unknown Exits Taken 1 | 1 . Scrap Searched . | . . Spaces Dug 16 | . 16 Terrain Destroyed 16 | . 16 Melee . | . . Projectile 16 | . 16 AOE . | . . Terrain Rammed . | . . Walls Destroyed . | . . Machines Disabled . | . . Actions | -11 -10 --------- Run | Scr Mat Total 527 | 111 416 Wait 57 | . 57 Move 381 | 88 293 Hop . | . . Pick Up 13 | 10 3 Fast Attach . | . . Attach 11 | 7 4 Detach . | . . Swap 2 | 1 1 Drop 1 | . 1 Fire 42 | 5 37 Melee . | . . Ram . | . . Kick 20 | . 20 Crush . | . . Escape Stasis . | . . Rewire . | . . Trap . | . . Miscellaneous . | . . Route ------- -11/Scrapyard -10/Materials History --------- Turn | Location | Event 2 | -11/Scrapyard | Met Revision 17 66 | -11/Scrapyard | Discovered new exit (range 8) 124 | -11/Scrapyard | Entered Materials 305 | -10/Materials | Build established: Mutant 542 | -10/Materials | Core integrity fell below 50% 578 | -10/Materials | Lost 3 parts (1p1n1u) 612 | -10/Materials | Core integrity fell below 20% 645 | -10/Materials | Lost 5 parts (1n1u3w) 662 | -10/Materials | Destroyed by G-34 Mercenary with Small Laser Last Messages --------------- 00612_ K-01 Serf collects debris. 00613_ The unstable cave ceiling collapses. 00613_ K-01 Serf collects debris. 00614_ The unstable cave ceiling collapses. 00614_ Imp. Terrain Scanner destroyed. 00615_ U-05 Engineer builds a Wall. 00616_ K-01 Serf collects debris. 00616_ R-06 Scavenger collects Aluminum Leg. 00617_ The unstable cave ceiling collapses. 00617_ R-06 Scavenger collects Particle Gun. 00628_ Acquired 2 matter. 00642_ Processing Tank disabled. To regain energy, simply wait via the mouse wheel '.', or KP5. Also make sure your per-turn energy generation is a net positive, and consider deactivating power-draining parts if not. 00656_ Kicked G-47 Trooper. 00658_ Mining Laser destroyed. 00658_ Kicked G-47 Trooper out of the way. 00659_ Kicked G-34 Mercenary. Map ----- +----------------------------------------------------+ | ?????????????????#???????????????????????????? | | ?????????????????????????????????????????????? | | ??????????????#??????????????????????????????? | | ????????????#?????????????#??????????????????? | | ?????????????????????????????????????????????? | | ?????????????????????????????????? ??????????? | | ???????????????????#??????#??????? ??????????? | | ??????????????????????????????? ?? ??????????? | | ??????????????????????????????? #??????????? | | ??????????????####+####+####### #??????????? | | ???????????????# +??????????? | | ?????????? ????# #??????????? | | ????????? ????## % ^ #??????????? | | ??????????????## ####+####### #?????????#? | | ???????????????# #?# % #### #??????????? | | ??#????????????# #?#%""" #?## #??????????? | | ???????# ##### #?# """ ##?# #???? ?????? | | ???????# #?# """ #?## #????? ????? | | ?? ????# ######+#### """ ##?# #??????????? | | ?? ????# ??# !# "" #?## #?????# ???? | | ???????# ?#%""" # %%% #??# #????####### | | ???????# ## """ #####"#??# #?#??# # | | ???? ?# ##%""" #???# ##?# #???## # | | ???????# != #??## #### ###### # | | ???????# # #??##g##?# # # | | ?????? # % #?##@###?# # # | | ???????+ * #?#g####?# + # | | ???????# %= ##### #### ## # # | | ???????# # ##???# #! !## ######? | | ???????# # #?#?# ##! !# #?#?#? | | ???????# ??# ?#####! !!## #????? | | ???????#???# """ """ ###??####### #?#??? | | ???????????# """ """ ##?#?#??#??# #????? | | ???????????+ """ """ #?#?#??###?# #?#??# | | ???????????# #?#?????#??## ##?#??? | | ??? ?????? # = ##???##??#??# #?#???? | | ???????????# ? #????###????# #?????? | | ????????#?###??+#####??##???######## #??#??? | | ??????????????? ??????????### ## ##????? | | ?????????????????????#?##???# #????#? | | ????????????????????????#??## #??#??? | | ??????????????????????#???#?# % #??#??? | | ???????????????????????#?#??# ##+########? | | ??????????????????????##?#??## ## %% ## | | ????????????????????????#????# ## %% #? | | ????????????????????????#??#?# ## ## | | ???????????????????????#?????# ## """T""" #? | | ????????????????????????#?#??# ############? | | ????????????????????????#????# # # | | ?????????????????????????#?### # """ # | +----------------------------------------------------+ Best States ------------- Heat Dissipation 25 Energy Generation 10 Energy Capacity 125 Matter Stores 300 Matter Capacity 300 Sight Range 16 Terrain Scan Range 16 Terrain Scan Density 10 Evasion (%) 55 Item Schematics ----------------- None Robot Schematics ------------------ None Fabricated ------------ Nothing Alien Tech Used ----------------- None Achievements -------------- One Hack Too Far Challenges ------------ None Game ------ Seed BottomlessRemotePenetrator Manual? 0 Play Time 00:11:43 Cumulative 0.9 hours Start 2022.04.04 @ 20:50:23 End 2022.04.04 @ 21:00:21 Sessions 1 Manual Loads 0 Difficulty Rogue Special Mode None Game No. 3 Rogue 3 Adventurer 0 Explorer 0 Win Type - Total 0 Types 0/0/0/0/0/0/0/0/0 Lore% 0 Gallery% 1 Achievement% 1 Wizard Run 0 Options --------- ASCII 0 Keyboard 0 Movement Numpad Keybinds 0 Fullscreen 1 Font 20/SmallcapsGlow Map View 66x50 Tactical HUD 1 Map Filters NONE Filters NONE Steam 1 RUN: aff5c3d3-9f8c-46f2-b7d2-810e14e30f67